Cogmind - Beta 14 @@@ ROGUE MODE // 2024.11.11 @ 19:39:30 Player: Knjet Result: Destroyed by Y-45 Defender with Beam Rifle Performance ------------- Evolutions (0) 0 Regions Visited (2) 400 Robots Destroyed (17) 85 Value Destroyed (352) 352 Prototype IDs (0) 0 Alien Tech Used (0) 0 Bonus (0) 0 TOTAL SCORE: 837 Bonus ------- None Cogmind --------- Core Integrity 0/250 Matter 127/300 Energy 100/100 System Corruption 0% Temperature Cool (9) Movement Core (100) Ox1 Location -10/Subcaves Parts ------- > --- POWER (1) -------- (None) > --- PROPULSION (2) --- (None) > --- UTILITY (2) ------ Small Storage Unit Terrain Scan Processor > --- WEAPON (2) ------- (None) > --- INVENTORY (8) ---- Visual Processing Unit Subdweller Optics Terrain Scan Processor Light Armor Plating Scrap Shield Fragment (45) Peak State ------------ > --- POWER ------------ Ion Engine > --- PROPULSION ------- Light Treads Spiked Treads > --- UTILITY ---------- Small Storage Unit Terrain Scan Processor > --- WEAPON ----------- Assault Rifle Makeshift Shrapnel Gun > --- INVENTORY -------- Visual Processing Unit Subdweller Optics Terrain Scan Processor Light Armor Plating Grenade Launcher Grenade Launcher Scrap Shield Fragment [Rating: 13] Favorites ----------- Power Ion Engine Engine Ion Engine Propulsion Light Treads Treads Light Treads Utility Small Storage Unit Storage Small Storage Unit Processor Terrain Scan Processor Weapon Assault Rifle Energy Gun Medium Laser Ballistic Gun Assault Rifle Launcher Grenade Launcher Build | -11 -10 -10 ------- Run | Yrd Mat Sub Slots Evolved . | . . . Power . | . . . Propulsion . | . . . Utility . | . . . Weapon . | . . . Parts Attached 16 | 6 2 8 Power 2 | 1 . 1 Engine 2 | 1 . 1 Core . | . . . Reactor . | . . . Propulsion 3 | 2 . 1 Treads 3 | 2 . 1 Leg . | . . . Wheel . | . . . Hover . | . . . Flight . | . . . Utility 2 | 1 1 . Device . | . . . Storage 1 | 1 . . Processor 1 | . 1 . Hackware . | . . . Protection . | . . . Artifact . | . . . Weapon 9 | 2 1 6 Energy Gun 2 | 1 1 . Energy Cannon . | . . . Ballistic Gun 4 | 1 . 3 Ballistic Cannon . | . . . Launcher 3 | . . 3 Special Weapon . | . . . Impact Weapon . | . . . Slashing Weapon . | . . . Piercing Weapon . | . . . Special Melee Weapon . | . . . Unidentified Prototypes . | . . . Parts Lost 11 | . 1 10 Power 2 | . . 2 Propulsion 3 | . . 3 Utility . | . . . Weapon 6 | . 1 5 Highest Loss Streak 4 | . 1 4 To Critical Strikes . | . . . Average Slot Usage (%) 90 | . 98 87 Engine 9 | . 14 7 Treads 25 | . 28 24 Storage 14 | . 14 14 Processor 13 | . 12 14 Energy Gun 8 | . 14 6 Ballistic Gun 16 | . 14 17 Launcher 1 | . . 2 Peak Build Rating 13 | 6 8 13 Average Rating 9 | 4 7 10 On Entrance 4 | . 6 8 Naked Turns . | . . . Heaviest Build 15 | 14 14 15 Greatest Support 40 | 40 40 40 Greatest Overweight (x) 1 | . . 1 Average Overweight (x) . | . . . Largest Inventory Capacity 8 | 8 8 8 Average Capacity 7 | 6 8 8 Most Carried 8 | 2 7 8 Average Carried 6 | . 5 7 Final Capacity 8 | 8 8 8 Final Carried 7 | 2 7 5 Class Distribution -------------------- 100% | Mutant Dominant Class ---------------- Mutant | -10/Materials Mutant | -10/Subcaves Resources | -11 -10 -10 ----------- Run | Yrd Mat Sub Matter Collected 433 | 255 50 128 Remotely . | . . . Salvage Created 273 | . 155 118 Parts 26 | . 11 15 Haulers Intercepted . | . . . Recyclers Shooed . | . . . Parts Field Recycled . | . . . Retrieved Matter . | . . . Parts Self-Destructed 10 | . . 10 Prevented . | . . . Kills | -11 -10 -10 ------- Run | Yrd Mat Sub Combat Hostiles Destroyed 17 | . 5 12 Guns 10 | . 5 5 AOE 6 | . . 6 Classes Destroyed 3 | . 2 1 Swarmer 11 | . 3 8 Grunt 4 | . 2 2 Subdweller 2 | . . 2 Best Kill Streak 5 | . 5 4 Combat Bots Only 5 | . 5 4 Max Kills in Single Turn 3 | . 1 3 Gunslinging . | . . . Exploded 3 | . . 3 Melee . | . . . Uniques/NPCs Destroyed . | . . . Combat | -11 -10 -10 -------- Run | Yrd Mat Sub Hostile Shots Fired 239 | . 23 216 Missed 86 | . 2 84 Damage Taken 1508 | . 213 1295 Core 263 | . 19 244 Absorbed by Shields . | . . . Core Remaining (%) 100 | 100 . . Volleys Fired 57 | . 10 47 Largest 2 | . 2 2 Hottest 80 | . 70 80 Shots Fired 97 | . 19 78 Gun 83 | . 19 64 Cannon . | . . . Launcher 14 | . . 14 Special . | . . . Kinetic 47 | . 10 37 Thermal 28 | . 1 27 Explosive 14 | . . 14 Electromagnetic 8 | . 8 . Robot Hit Streak 17 | . 5 17 Robot Miss Streak 4 | . 2 4 Penetration Max . | . . . Secondary Targets 1 | . . 1 Max Gunslinging Chain 1 | . . 1 Shots Hit Robots 46 | . 10 36 Core Hits 23 | . 7 16 Critical Kills . | . . . Critical Parts Destroyed . | . . . Critical Strikes . | . . . Melee Attacks . | . . . Impact . | . . . Slashing . | . . . Piercing . | . . . Sneak Attacks . | . . . Combat Hostiles . | . . . Follow-up Attacks . | . . . Damage Inflicted 1188 | . 137 1051 Guns 662 | . 136 526 Cannons . | . . . Explosions 525 | . . 525 Melee . | . . . Ramming 1 | . 1 . Kinetic 377 | . 51 326 Thermal 212 | . 12 200 Explosive 525 | . . 525 Electromagnetic 73 | . 73 . Impact . | . . . Slashing . | . . . Piercing . | . . . Highest Corruption . | . . . Average Corruption . | . . . Corruption Purged . | . . . Corruption Blocked . | . . . Overload Shots . | . . . Overflow Damage 34 | . . 34 Projectiles . | . . . Explosions 34 | . . 34 Melee . | . . . Knockbacks . | . . . Impact . | . . . Kinetic . | . . . Secondary . | . . . Self-Inflicted Damage 38 | . . 38 Shots 1 | . . 1 Rammed 1 | . 1 . Targets Rammed 1 | . 1 . Kicked . | . . . Crushed . | . . . Highest Temperature 33 | . 33 2 Average Temperature 11 | . 12 1 Received Heat Transfer 711 | . 57 654 Siege Activations . | . . . Robots Corrupted . | . . . Combat Hostiles . | . . . Parts Fried . | . . . Impact Corruptions . | . . . Robots Melted . | . . . Combat Hostiles . | . . . Parts Melted . | . . . Heat Transferred 629 | . 37 592 Parts Sabotaged . | . . . Parts Stolen . | . . . Parts Stripped . | . . . Power Chain Reactions . | . . . Alert | -11 -10 -10 ------- Run | Yrd Mat Sub Peak Influence 170 | . 170 . Initial . | . . . Average 70 | . 86 . Maximum Alert Level . | . . . Low Security (%) 100 | 100 100 . Level 1 . | . . . Level 2 . | . . . Level 3 . | . . . Level 4 . | . . . Level 5 . | . . . High Security . | . . . Max Security . | . . . Squads Dispatched . | . . . Investigation . | . . . Extermination . | . . . Reinforcement . | . . . Assault . | . . . Garrison . | . . . Intercept . | . . . Searches Triggered . | . . . Construction Impeded . | . . . Haulers Reinforced . | . . . Active Scanning Responses . | . . . Cargo Convoy Interrupts . | . . . Stealth | -11 -10 -10 --------- Run | Yrd Mat Sub Distress Signals . | . . . Communications Jammed . | . . . Distress Signals . | . . . Times Spotted 25 | . 10 15 Peak Tracking Total 6 | . 5 6 Tactical Retreats 3 | . 1 2 Traps | -11 -10 -10 ------- Run | Yrd Mat Sub Traps Triggered . | . . . Indirectly . | . . . Trap Hack Attempts . | . . . Triggered . | . . . Disarmed . | . . . Reprogrammed . | . . . Reused . | . . . Traps Extracted . | . . . Installed . | . . . Triggered . | . . . Machines | -11 -10 -10 ---------- Run | Yrd Mat Sub Machines Disabled 3 | . . 3 Max in Single Turn 2 | . . 2 Machines Repaired . | . . . Machines Dismantled . | . . . Machines Sabotaged . | . . . Overloaded Fab Kills . | . . . Hacking | -11 -10 -10 --------- Run | Yrd Mat Sub Machines Accessed 1 | . 1 . Terminals 1 | . 1 . Fabricators . | . . . Repair Stations . | . . . Recycling Units . | . . . Scanalyzers . | . . . Garrison Access . | . . . Total Hacks 4 | . 4 . Successful 2 | . 2 . Failed 2 | . 2 . Catastrophic . | . . . Database Lockouts . | . . . Manual 5 | . 5 . Terminals 4 | . 4 . Fabricators . | . . . Repair Stations . | . . . Recycling Units . | . . . Scanalyzers . | . . . Garrison Access . | . . . Terminal Hacks 1 | . 1 . Robot Analysis 1 | . 1 . Fabricator Hacks . | . . . Repair Station Hacks . | . . . Recycling Unit Hacks . | . . . Scanalyzer . | . . . Garrison Access Hacks . | . . . Unauthorized Hacks 1 | . 1 . Terminals 1 | . 1 . Assimilate 1 | . 1 . Fabricators . | . . . Repair Stations . | . . . Recycling Units . | . . . Scanalyzers . | . . . Garrison Access . | . . . Data Cores Recovered . | . . . Used . | . . . Hacking Detections . | . . . Full Trace Events . | . . . Feedback Events . | . . . Feedback Blocked . | . . . Robot Schematics Acquired . | . . . Robots Built . | . . . Authchips . | . . . Time . | . . . Total Robot Build Rating . | . . . Part Schematics Acquired . | . . . Parts Built . | . . . Authchips . | . . . Time . | . . . Total Part Build Rating . | . . . Parts Repaired . | . . . Time . | . . . Parts Recycled . | . . . Recycled Matter . | . . . Retrieved Matter . | . . . Retrieved Components . | . . . Parts Scanalyzed . | . . . Part Schematics Acquired . | . . . Parts Damaged . | . . . Bothacking | -11 -10 -10 ------------ Run | Yrd Mat Sub Used RIF Installer . | . . . Robots Hacked . | . . . Non-combat . | . . . Combat . | . . . Robot Hacks Applied . | . . . Relay Couplers Released . | . . . Fabnet Peak Effective % . | . . . Robots Rewired . | . . . Allies Hacked . | . . . Hacks Repelled . | . . . Allies | -11 -10 -10 -------- Run | Yrd Mat Sub Total Allies . | . . . Largest Group . | . . . Highest-Rated Group . | . . . Highest-Rated Ally . | . . . Total Orders . | . . . Ally Attacks . | . . . Total Damage . | . . . Kills . | . . . Allies Corrupted . | . . . Allies Melted . | . . . Intel | -11 -10 -10 ------- Run | Yrd Mat Sub Robot Analysis Total 1 | . 1 . Derelict Logs Recovered . | . . . Drone Launches . | . . . Drone Recoveries . | . . . Exploration | -11 -10 -10 ------------- Run | Yrd Mat Sub Turns Passed 1461 | 92 402 967 Spaces Moved 805 | 64 224 517 Core 29 | 18 . 11 Treads 776 | 46 224 506 Legs . | . . . Wheels . | . . . Hover . | . . . Flight . | . . . Fastest Speed 50 | 50 160 100 Average Speed 156 | 129 160 158 Slowest Speed 160 | 160 160 160 Overloaded Moves . | . . . Propulsion Burnouts . | . . . Robots Hopped . | . . . Cave-ins Triggered . | . . . Exploration Rate (%) 22 | 5 34 29 Regions Visited 2 Branch Regions 1 Pre-discovered Areas . | . . . Known Exits Taken . | . . . Unknown Exits Taken 2 | 1 1 . Scrap Searched . | . . . Spaces Dug . | . . . Terrain Destroyed 68 | . . 68 Melee . | . . . Projectile . | . . . AOE 68 | . . 68 Terrain Rammed . | . . . Walls Destroyed . | . . . Machines Disabled . | . . . Actions | -11 -10 -10 --------- Run | Yrd Mat Sub Total 906 | 71 249 586 Wait 10 | . 3 7 Move 803 | 63 223 517 Hop . | . . . Pick Up 13 | 2 8 3 Fast Attach 9 | 6 1 2 Attach 7 | . 1 6 Detach 2 | . . 2 Swap . | . . . Drop 4 | . 2 2 Fire 57 | . 10 47 Melee . | . . . Ram . | . . . Kick . | . . . Crush 1 | . 1 . Escape Stasis . | . . . Rewire . | . . . Trap . | . . . Miscellaneous . | . . . Route ------- -11/Scrapyard -10/Materials (discovered 2 exits: [*Min] / [*Sub]) -10/Subcaves (discovered 1 exit: [*Rec]) History --------- Turn | Location | Event 52 | -11/Scrapyard | Discovered new exit (range 15) 93 | -11/Scrapyard | Entered Materials 319 | -10/Materials | Build established: Mutant 422 | -10/Materials | Discovered new exit (range 6) 478 | -10/Materials | Discovered new exit (range 9) 495 | -10/Materials | Entered Subcaves 585 | -10/Subcaves | A swath of the cavern ceiling suddenly collapsed 618 | -10/Subcaves | Ambushed by Subdweller buried in earth 681 | -10/Subcaves | Lost 3 parts (1p1n1w) 1387 | -10/Subcaves | Discovered new exit (range 15) 1391 | -10/Subcaves | Core integrity fell below 50% 1418 | -10/Subcaves | Core integrity fell below 20% 1438 | -10/Subcaves | Lost 4 parts (1p3w) 1462 | -10/Subcaves | Destroyed by Y-45 Defender with Beam Rifle Last Messages --------------- 01387_ EXIT=FOUND 01389_ Subatomizers dissect the Disposable Heat Sink. 01392_ Mak. Shrapnel Gun destroyed. 01399_ Grenade Launcher destroyed. 01401_ Subatomizers dissect the Disposable Heat Sink. 01407_ Ion Engine destroyed. 01407_ Acquired 15 matter. 01415_ Subatomizers dissect the Disposable Heat Sink. 01431_ S-10 Pest destroyed. 01436_ Lgt. Ion Engine fries itself beyond repair. 01437_ Critical hit (Burn: +37). 01446_ Assault Rifle destroyed. 01449_ Flight Unit fries itself beyond repair. 01449_ Lgt. Assault Rifle fries itself beyond repair. 01449_ Spk. Treads destroyed. Map ----- +----------------------------------------------------+ | ?????????????????????????????????????????????????? | | ?????????????????????????????????????????????????? | | ?????????????????????????????????????????????????? | | ?????????????????????????????????????????????????? | | ?????????????????????????????????????????????????? | | ???????????????? ??????????????????????????????? | | ???????????????? ?????????????????????????????? | | ??????????????? ?????????????????????????????? | | ?????????????#?# #???? ???????????????????????? | | ????#<###??? ## ##?? ??????????????????????? | | ?"""" "" ???? ### ??????????????????????? | | ?" " "???? ?????? ?#??????????????? | | #" "#???# ?????? #??????????????? | | # #??## ??????? ???????????????? | | # #### #??????? #???????????????? | | # "# #???????? #????????????????? | | ?# & #??????? ##???????????????? | | ?# !%*#?###### #???????????????? | | ?# ![ ### ?????????????????? | | ?# #????????????????????? | | ????# * ##???????????????????? | | ???## ## = #???????????????????? | | ???# ## #### ### #???#???????????????? | | ???# ######??####?##% ## ##??????????????? | | ???### ##?????????????# #??????????????? | | ?????# #??????????????#@Y ## ##??????????????? | | ###??# ##????????????## #?? #??????????????? | | #??# #????????????# ###?? #?????????????? | | #??# #????????????## #??? #?????????????? | | #??# #?????????????##" ##?? #??????????????? | | ##?# #??????????????## #? #??????????????? | | ### #???????????????# ###" #??????????????? | | ## #???????????????# #"" ##?????????????? | | ##???????????????# "" #?????????????? | | #### # # #??????????????# # # ##?????????????? | | #??########??????????????#######?##??????????????? | | ?????????????????????????????????????????????????? | | ????????????????????????#####????????????????????? | | #???????###?????????????# ##???????????????????? | | ######### #?????????????# ###?????????????????? | | ## ##???????????## ##????????????????? | | ## ###?????????# #??#####?????????? | | ## #??###????# #?## ##????????? | | ##??# ##???# ## #?# #????????? | | #???# ##??# ### ### #????????? | | ##???# #### ## #????????? | | ###????## ## ## #????????? | | #???????# ### ##????????? | | #??????## #?######## ##?????????? | | ##?###### ####?????###??????????? | +----------------------------------------------------+ Best States ------------- Heat Dissipation 25 Energy Generation 10 Energy Capacity 250 Matter Stores 300 Matter Capacity 300 Sight Range 16 Terrain Scan Density 85 Evasion (%) 50 Recoil Reduction 2 Item Schematics ----------------- None Robot Schematics ------------------ None Fabricated ------------ Nothing Alien Tech Used ----------------- None Achievements -------------- None Challenges ------------ None Game ------ Seed HybridQuantumCutter Manual? 0 Play Time 00:12:06 Cumulative 25.5 hours Start 2024.11.11 @ 19:29:05 End 2024.11.11 @ 19:39:30 Sessions 1 Manual Loads 0 Difficulty Rogue Special Mode None Game No. 51 Rogue 51 Adventurer 0 Explorer 0 Win Type - Total 0 Types 0/0/0/0/0/0/0/0/0 Lore% 12 Gallery% 24 Achievement% 22 Wizard Run 0 Options --------- Layout 1 ASCII 0 Keyboard 1 Movement Numpad Keybinds 0 Fullscreen 1 Font 32/SmallcapsGlow Map View 50x35 Zoom Use 0% Tactical HUD 1 Map Filters NONE Filters NONE Steam 1 RUN: 0cdab158-6303-4ce0-9fab-bf91730d0406